[Event "55th Biel Festival MTO 2022"]
[Site "Biel"]
[Date "2022.07.22"]
[Round "9.12"]
[White "Huschenbeth, Niclas"]
[Black "Krishna C R G"]
[Result "1/2-1/2"]
[ECO "C18"]
[WhiteElo "2610"]
[BlackElo "2430"]
[Annotator "TA"]
[PlyCount "34"]
[EventDate "2022.07.13"]
[EventType "swiss"]
[EventCountry "SUI"]
[SourceTitle "playchess.com"]
[Source "ChessBase"]
[SourceQuality "1"]
[TimeControl "40/5400+30:1800+30"]

{[%evp 13,34,2,30,-15,-17,-20,0,0,28,33,27,0,0,0,0,0,0,0,0,0,0,0,0]} 1. e4 {[%emt 0:00:46]} e6 {[%emt 0:00:19]} 2. d4 {[%emt 0:00:05]} d5 {[%emt 0:00:06]} 3. Nc3 {[%emt 0:00:06]} Bb4 {[%emt 0:00:07]} 4. e5 {[%emt 0:00:05]} c5 {[%emt 0:00:08]} 5. a3 {[%emt 0:00:12]} Bxc3+ {[%emt 0:00:02]} 6. bxc3 {[%emt 0:00:07]} Ne7 {[%emt 0:00:10]} 7. Qg4 {[%emt 0:00:20]} cxd4 {[%emt 0:00:03]} 8. Bd3 {[%emt 0:00:12] C18: French: 3 Nc3 Bb4: Main line: 7 h4 and 7 Qg4.} Qa5 {[%emt 0:01:06]} 9. Rb1 {[%emt 0:00:23]} Nd7 {[%emt 0:16:31]} 10. Nf3 {[%emt 0:02:53]} Qxc3+ {[%emt 0:02:13]} 11. Bd2 {[%emt 0:00:26]} Qc7 {[%emt 0:00:10]} 12. O-O {[%emt 0:34:50]} Nxe5 {[%emt 0:19:47] The position is equal.} 13. Nxe5 {[%emt 0:00:05]} ({Not} 13. Qxg7 $2 Nxf3+ 14. gxf3 Rg8 $19) 13... Qxe5 {[%emt 0:00:08]} 14. Bf4 {[%emt 0:05:55] [#]} Qf6 $146 {[%emt 0:18:04] [#] Strongly threatening ...e5.} ({Predecessor:} 14... h5 15. Qh4 Nf5 16. Bb5+ Bd7 17. Bxd7+ Kxd7 18. Rxb7+ Ke8 19. Bxe5 Nxh4 20. Rfb1 Rh6 21. Bxd4 Rg6 22. Bc5 Nf5 23. Bxa7 {1-0 (50) Perunovic,M (2589)-Iljiushenok,I (2521) Moscow 2019}) 15. Bg5 {[%emt 0:00:35]} Qe5 {[%emt 0:00:03]} 16. Bf4 {[%emt 0:21:06] This bishop pair is nice.} Qf6 {[%emt 0:00:47] ...e5 is the strong threat.} 17. Bg5 {[%emt 0:00:05]} Qe5 {[%emt 0:00:09] An interesting draw.  Weighted Error Value: White=0.08 (flawless) /Black=0.09 (flawless)} 1/2-1/2

[Event "55th Biel Festival MTO 2022"]
[Site "Biel"]
[Date "2022.07.22"]
[Round "9.13"]
[White "Hilby, Craig"]
[Black "Ganguly, Surya Shekhar"]
[Result "1/2-1/2"]
[ECO "B90"]
[WhiteElo "2422"]
[BlackElo "2608"]
[Annotator "TA"]
[PlyCount "42"]
[EventDate "2022.07.13"]
[EventType "swiss"]
[EventCountry "SUI"]
[SourceTitle "playchess.com"]
[Source "ChessBase"]
[SourceQuality "1"]
[TimeControl "40/5400+30:1800+30"]

{[%evp 17,42,12,13,0,0,0,0,0,0,0,0,0,0,0,0,0,0,0,0,0,0,0,39,0,0,0,35]} 1. e4 {[%emt 0:07:26]} c5 {[%emt 0:00:45]} 2. Nf3 {[%emt 0:00:09]} d6 {[%emt 0:00:07]} 3. d4 {[%emt 0:00:09]} cxd4 {[%emt 0:00:05]} 4. Nxd4 {[%emt 0:00:04]} Nf6 {[%emt 0:00:06]} 5. Nc3 {[%emt 0:00:08]} a6 {[%emt 0:00:04]} 6. Be3 {[%emt 0:00:49]} e5 {[%emt 0:00:55]} 7. Nf3 {[%emt 0:00:13]} Be7 {[%emt 0:02:00]} 8. Bc4 {[%emt 0:00:12]} O-O {[%emt 0:00:04]} 9. O-O {[%emt 0:00:12]} Nc6 {[%emt 0:00:06]} 10. Re1 {[%emt 0:01:22] B90: Sicilian Najdorf: Unusual White 6th moves, 6 Be3 Ng4 and 6 Be3 e5.} Be6 {[%emt 0:00:06] Nowadays more popular than 10...b5.} 11. Nd5 {[%emt 0:04:22]} Bxd5 {[%emt 0:00:12]} (11... Nxe4 $2 12. Bb6 Qc8 13. Rxe4 $18) 12. exd5 {[%emt 0:00:10]} b5 {[%emt 0:00:36]} 13. Bf1 {[%emt 0:00:07]} Nb4 {[%emt 0:00:03]} 14. c4 {[%emt 0:00:18]} bxc4 {[%emt 0:00:05]} 15. Bxc4 {[%emt 0:00:10] a3 is the strong threat.} Qc7 {[%emt 0:00:07]} 16. Rc1 {[%emt 0:05:22] [#] Black must now prevent a3.} Qb7 $1 {[%emt 0:00:05][%cal Rb4d5]} 17. Qb3 {[%emt 0:00:16] Strongly threatening a3.} Rfb8 {[%emt 0:00:11][%cal Rb4d5]} 18. Red1 {[%emt 0:01:33]} Qd7 {[%emt 0:00:03]} 19. Qc3 {[%emt 0:03:17]} Qb7 {[%emt 0:00:01][%cal Rb4d5] [#]} 20. Qb3 $146 {[%emt 0:01:48]} (20. Qd2 $5 {[%cal Ra2a3]}) ({Predecessor:} 20. Qd2 Ne4 21. Qe2 Nf6 22. Ng5 a5 23. a3 Na6 24. f4 exf4 25. Bd4 h6 26. Ne4 Nxe4 27. Qxe4 Bg5 28. Bd3 {½-½ (42) Simakov,V (2327)-Kopeikin,V (2416) ICCF email 2012}) 20... Qd7 {[%emt 0:00:01]} 21. Qc3 {[%emt 0:00:26]} Qb7 {[%emt 0:00:04] A rather calm draw.  Weighted Error Value: White=0.05 (flawless) /Black=0.03 (flawless)} 1/2-1/2

[Event "55th Biel Festival MTO 2022"]
[Site "Biel"]
[Date "2022.07.22"]
[Round "9.14"]
[White "Iniyan, P."]
[Black "Korley, Kassa"]
[Result "1-0"]
[ECO "D31"]
[WhiteElo "2533"]
[BlackElo "2421"]
[Annotator "TA"]
[PlyCount "55"]
[EventDate "2022.07.13"]
[EventType "swiss"]
[EventCountry "SUI"]
[SourceTitle "playchess.com"]
[Source "ChessBase"]
[SourceQuality "1"]
[TimeControl "40/5400+30:1800+30"]

{[%evp 9,55,5,30,50,47,40,37,36,47,51,47,48,68,10,60,7,8,8,11,13,13,11,28,41,33,0,27,0,0,-3,-4,-14,12,25,21,26,25,18,72,76,89,80,133,121,127,131,125,108]} 1. d4 {[%emt 0:06:22]} d5 {[%emt 0:00:04]} 2. c4 {[%emt 0:00:09]} e6 {[%emt 0:00:05]} 3. Nc3 {[%emt 0:00:09]} a6 {[%emt 0:00:08]} 4. cxd5 {[%emt 0:00:58]} exd5 {[%emt 0:00:07]} 5. Qb3 {[%emt 0:00:52]} Bd6 {[%emt 0:09:11]} 6. Qxd5 {[%emt 0:08:14] D31: Queen's Gambit Declined: Semi-Slav without ...Nf6 (+ Marshall Gambit and Noteboom) and Exchange Variation lines without ...Nf6.} Nf6 {[%emt 0:00:07]} 7. Qb3 {[%emt 0:00:16]} c5 {[%emt 0:00:09]} 8. Nf3 {[%emt 0:15:51] White is slightly better.} cxd4 {[%emt 0:01:28]} 9. Nxd4 {[%emt 0:01:22]} Bc5 {[%emt 0:01:19]} 10. Nf3 {[%emt 0:11:33] [#]} Be6 $146 {[%emt 0:14:25]} ({Predecessor:} 10... O-O 11. Bf4 b5 12. Rd1 Qe7 13. e3 Be6 14. Qc2 Rc8 15. Qb1 Bb4 16. Bd3 Nd5 17. Bxh7+ Kh8 18. Rxd5 Bxd5 {0-1 (35) Perez Ponsa,F (2554)-Svane,R (2623) Chess.com INT 2021}) 11. Qd1 {[%emt 0:01:21]} ({Don't blunder} 11. Qxb7 $2 Ra7 12. Qxa7 Bxa7 $19) ({White should play} 11. Qc2 $14) 11... Qe7 {[%emt 0:30:00]} (11... Nc6 $11) 12. e3 {[%emt 0:04:36]} (12. Bg5 $14) 12... Nc6 $11 {[%emt 0:00:19]} 13. a3 {[%emt 0:02:09]} O-O {[%emt 0:00:12]} 14. Be2 {[%emt 0:03:48]} Rfd8 {[%emt 0:03:21]} 15. Qc2 {[%emt 0:00:13]} Rac8 {[%emt 0:02:54]} 16. O-O {[%emt 0:01:12]} (16. Ng5 {with more complications.} Na5 17. Nxe6 Qxe6 18. O-O) 16... Bd6 {[%emt 0:00:11]} 17. h3 {[%emt 0:05:21]} (17. Rd1 {feels hotter.} Ng4 18. g3 b5 19. Bd2) 17... h6 {[%emt 0:12:51]} 18. Bd2 {[%emt 0:05:23]} Qd7 {[%emt 0:02:49][%cal Oe6h3]} 19. Qa4 {[%emt 0:03:05]} b5 {[%emt 0:05:35]} 20. Qh4 {[%emt 0:00:08]} Ne7 {[%emt 0:05:06]} 21. Ne4 $1 {[%emt 0:00:07]} Nxe4 {[%emt 0:00:08]} 22. Qxe4 {[%emt 0:00:05]} Bf5 {[%emt 0:03:35]} 23. Qh4 {[%emt 0:00:07]} Ng6 {[%emt 0:01:40] [#]} (23... Rc2 $11) 24. Qh5 $1 $16 {[%emt 0:00:06]} Ne5 {[%emt 0:01:45] aiming for ...g6.} 25. Ba5 {[%emt 0:01:08] And now Nxe5 would win.} Re8 {[%emt 0:01:58]} (25... Bg6 $142 26. Qh4 (26. Nxe5 Bxh5 27. Nxd7 Bxe2 $14) 26... Re8) 26. Rfd1 {[%emt 0:01:01][%cal Od1d6] Strongly threatening Rxd6!} Nxf3+ {[%emt 0:00:31]} 27. Bxf3 {[%emt 0:00:22][%cal Od1d6] Hoping for Rxd6!} ({Much less strong is} 27. Qxf3 Be4 28. Qf4 Bxf4) 27... Bc2 {[%emt 0:02:21]} 28. Bb4 {[%emt 0:00:19] Weighted Error Value: White=0.12 (very precise) /Black=0.13 (very precise)} 1-0

[Event "55th Biel Festival MTO 2022"]
[Site "Biel"]
[Date "2022.07.22"]
[Round "9.15"]
[White "Gagare, Shardul"]
[Black "Peyrer, Konstantin"]
[Result "1-0"]
[ECO "A15"]
[WhiteElo "2514"]
[BlackElo "2406"]
[Annotator "TA"]
[PlyCount "67"]
[EventDate "2022.07.13"]
[EventType "swiss"]
[EventCountry "SUI"]
[SourceTitle "playchess.com"]
[Source "ChessBase"]
[SourceQuality "1"]
[TimeControl "40/5400+30:1800+30"]

{[%evp 17,67,16,20,0,17,-21,-13,-10,31,43,39,15,29,33,25,31,40,33,37,47,179,174,175,173,167,135,145,92,101,104,97,107,201,209,200,216,210,0,0,0,0,0,0,-47,225,164,627,607,2666,1288,2441,2263]} 1. Nf3 {[%emt 0:04:19]} Nf6 {[%emt 0:00:16]} 2. g3 {[%emt 0:00:51]} g6 {[%emt 0:00:06]} 3. b3 {[%emt 0:01:09]} Bg7 {[%emt 0:00:57]} 4. Bb2 {[%emt 0:00:08]} O-O {[%emt 0:00:00]} 5. Bg2 {[%emt 0:00:06]} d6 {[%emt 0:00:00]} 6. c4 {[%emt 0:08:57]} e5 {[%emt 0:01:02]} 7. O-O {[%emt 0:00:34]} Nc6 {[%emt 0:00:12]} 8. d3 {[%emt 0:06:10]} Nh5 {[%emt 0:04:35]} 9. Nc3 {[%emt 0:00:36]} f5 {[%emt 0:01:18]} 10. a3 {[%emt 0:00:57] A15: English Opening: 1...Nf6.} Be6 {[%emt 0:07:13]} (10... e4 11. dxe4 fxe4 12. Qd5+ Kh8 13. Qxe4 $16) 11. Nd2 {[%emt 0:09:52]} Qd7 {[%emt 0:01:52]} 12. b4 {[%emt 0:00:45] [#] The position is equal.} e4 $146 {[%emt 0:04:10]} ({Predecessor:} 12... f4 13. b5 Nd8 14. Nde4 Bh3 15. f3 fxg3 16. hxg3 Bxg2 17. Kxg2 Ne6 18. a4 Nd4 19. e3 Nf5 20. Qe2 Bh6 {1-0 (20) Utegaliev,A (2488)-Travadon,L (2413) Belgrade 2021}) 13. dxe4 {[%emt 0:02:50]} f4 $1 {[%emt 0:01:20]} 14. Nf3 {[%emt 0:12:59]} Bxc4 {[%emt 0:04:37]} 15. Rc1 {[%emt 0:14:31][%cal Oc3d5]} Rae8 {[%emt 0:14:43]} 16. Na4 {[%emt 0:04:26]} Bxb2 {[%emt 0:08:26]} (16... Rxe4 $2 17. Nc5 Qf7 18. Ng5 Bxe2 19. Nxf7 $18) 17. Rxc4 {[%emt 0:03:46]} Bg7 {[%emt 0:00:08]} (17... Bxa3 $2 18. Qb3 $18) 18. Qd5+ {[%emt 0:02:06]} Kh8 {[%emt 0:00:42]} (18... Qf7 $14) 19. Nc5 $1 $18 {[%emt 0:01:08]} Qe7 {[%emt 0:00:43]} 20. Nxb7 {[%emt 0:01:12]} Ne5 {[%emt 0:00:11]} 21. Nxe5 {[%emt 0:02:18]} Bxe5 {[%emt 0:00:06]} 22. Na5 {[%emt 0:01:42] White is more active.} ({Better is} 22. Qd3) 22... fxg3 $16 {[%emt 0:04:04]} 23. hxg3 {[%emt 0:00:20] Hoping for Nc6.} Qg5 {[%emt 0:00:10][%cal Oh5g3] [#] And now ...Nxg3! would win.} 24. Qd3 {[%emt 0:04:19]} (24. Rxc7 $2 {[#]} Nxg3 $1 25. Qd3 (25. fxg3 Qe3+ 26. Kh1 Rxf1+ 27. Bxf1 Qxg3) 25... Nxf1 $19) 24... Nxg3 {[%emt 0:10:41]} 25. fxg3 $18 {[%emt 0:00:46]} Rxf1+ {[%emt 0:02:06]} 26. Kxf1 {[%emt 0:04:25]} (26. Bxf1 Bxg3 27. Bg2 (27. Rxc7 $2 Rf8 $19) 27... Rf8 $11) 26... Bxg3 {[%emt 0:00:15]} 27. Nc6 $2 {[%emt 0:05:57]} (27. Rxc7 $6 d5 28. Rc3 Rf8+ 29. Kg1 Bf2+ 30. Kh1 Rf4 $14) (27. Qd4+ $18 Be5 28. Qf2 (28. Qxa7 Rf8+ 29. Bf3 c5 $11)) 27... Rf8+ $1 $11 {[%emt 0:02:08]} 28. Bf3 {[%emt 0:00:04] Threatens to win with Qd4+.} Qh4 {[%emt 0:00:24][%cal Rh4h1]} 29. Qd4+ {[%emt 0:00:13]} Kg8 {[%emt 0:00:12] ( -> ...Qh1+)} 30. Qg1 {[%emt 0:00:45] Against Qh1} ({But not} 30. Qd5+ $2 Rf7 31. Ne7+ Qxe7 $19) (30. Rc3 $1 $11 {feels stronger.}) 30... Kh8 $2 {[%emt 0:10:01][%mdl 8192]} (30... d5 $1 $15 {keeps the upper hand.} 31. Ne7+ Qxe7 32. exd5 Qe5) 31. Rc3 {[%emt 0:06:30]} g5 $2 {[%emt 0:01:58]} (31... Rf7 32. Rc1 (32. Nxa7 g5 $11) (32. Qg2 g5 $14) 32... g5) 32. Qd4+ $18 {[%emt 0:01:04] White is clearly winning.} Kg8 {[%emt 0:00:05]} 33. Ne7+ {[%emt 0:00:14]} Kf7 {[%emt 0:00:04]} 34. Nf5 {[%emt 0:00:24] Weighted Error Value: White=0.22 (precise) /Black=0.50} 1-0

[Event "55th Biel Festival MTO 2022"]
[Site "Biel"]
[Date "2022.07.22"]
[Round "9.16"]
[White "Bharath Subramaniyam H"]
[Black "Katz, Alexander"]
[Result "1-0"]
[ECO "D02"]
[WhiteElo "2479"]
[BlackElo "2402"]
[Annotator "TA"]
[PlyCount "101"]
[EventDate "2022.07.13"]
[EventType "swiss"]
[EventCountry "SUI"]
[SourceTitle "playchess.com"]
[Source "ChessBase"]
[SourceQuality "1"]
[TimeControl "40/5400+30:1800+30"]

{[%evp 9,101,10,6,-4,9,-7,0,0,0,-10,-12,-4,12,22,22,17,54,58,48,60,54,0,-2,-48,-60,-71,-34,-42,-37,-37,-39,-37,-21,-29,-28,-45,-10,-15,-16,-8,-10,-14,-14,-15,0,0,0,0,0,0,7,7,7,0,0,0,0,0,8,8,26,6,22,0,0,0,0,0,0,0,0,0,0,0,0,0,0,0,85,59,78,77,383,84,84,84,384,84,804,785,1413,1252,29947,4407]} 1. d4 {[%emt 0:00:03]} Nf6 {[%emt 0:02:27]} 2. Nf3 {[%emt 0:00:07]} e6 {[%emt 0:00:07]} 3. Bf4 {[%emt 0:00:06]} d5 {[%emt 0:00:38]} 4. c3 {[%emt 0:00:09]} Bd6 {[%emt 0:01:14]} 5. e3 {[%emt 0:00:10]} O-O {[%emt 0:00:15]} 6. Nbd2 {[%emt 0:00:17] D02: 1 d4 d5 2 Nf3 sidelines, including 2...Nf6 3 g3 and 2...Nf6 3 Bf4.} c5 {[%emt 0:00:33]} 7. Bg3 {[%emt 0:00:26]} Qc7 {[%emt 0:02:18]} 8. dxc5 {[%emt 0:00:29] The position is equal.} Qxc5 {[%emt 0:00:07]} 9. Bd3 {[%emt 0:00:05]} Nbd7 {[%emt 0:03:36]} 10. Qe2 {[%emt 0:00:13]} e5 {[%emt 0:13:22]} 11. e4 {[%emt 0:00:33]} dxe4 {[%emt 0:00:30]} 12. Bxe4 {[%emt 0:00:11]} Nxe4 {[%emt 0:06:31]} 13. Nxe4 {[%emt 0:00:41]} Qc6 {[%emt 0:00:06]} 14. Nxd6 {[%emt 0:06:20]} Qxd6 {[%emt 0:02:57] [#]} 15. O-O $146 {[%emt 0:06:36]} (15. Nxe5 $2 Re8 16. Rd1 Qb6 $17) (15. Bxe5 $14 Nxe5 16. Qxe5) ({Predecessor:} 15. Bxe5 Nxe5 16. Qxe5 Qb6 17. O-O-O Be6 18. Qd4 Bxa2 19. Qxb6 axb6 20. Rd6 Bd5 21. Rd1 {1-0 (57) Starcevic,A (2237)-Petrek,D (2021) Pula 2022}) 15... f6 $11 {[%emt 0:04:07]} 16. c4 {[%emt 0:38:01]} (16. Qc4+ $11 {is more appropriate.} Kh8 17. Rfd1) 16... Nc5 {[%emt 0:04:05]} 17. b4 {[%emt 0:11:14] And now Rfd1 would win.} Qd3 {[%emt 0:03:22]} (17... Ne6 $5 {[%cal Rd6b4]} 18. c5 Nd4 19. Nxd4 Qxd4 $11) 18. Qb2 {[%emt 0:01:03]} Ne4 {[%emt 0:01:17]} 19. Rac1 {[%emt 0:00:27]} Rd8 {[%emt 0:02:12]} 20. Rfe1 {[%emt 0:07:23]} Bf5 {[%emt 0:14:30]} 21. Re3 {[%emt 0:05:01]} Qd7 {[%emt 0:00:11]} 22. Nh4 {[%emt 0:05:29]} a5 {[%emt 0:01:50]} 23. bxa5 {[%emt 0:03:47]} Nc5 {[%emt 0:08:05] Threatens to win with ...Nd3.} ({But not} 23... Qd1+ 24. Re1 Qd7 25. Nxf5 Qxf5 26. c5 $16 (26. Qxb7 Nc5 $11)) 24. Qb6 {[%emt 0:08:16]} Rac8 {[%emt 0:03:56]} 25. Nxf5 {[%emt 0:01:44]} Qxf5 {[%emt 0:00:03]} 26. Ree1 {[%emt 0:00:54]} Rd2 {[%emt 0:05:38]} 27. Rcd1 {[%emt 0:01:52]} Qc2 {[%emt 0:02:01]} 28. Rxd2 {[%emt 0:01:20]} Qxd2 {[%emt 0:00:02][%cal Rd2e1]} 29. f3 {[%emt 0:00:32]} Qxa2 {[%emt 0:02:55]} 30. Qb5 {[%emt 0:00:12]} Qc2 {[%emt 0:12:50]} 31. h3 {[%emt 0:00:34]} h6 {[%emt 0:00:32]} 32. Rf1 {[%emt 0:01:00]} e4 {[%emt 0:01:59]} 33. fxe4 {[%emt 0:00:01]} Qxe4 {[%emt 0:01:14]} 34. Re1 {[%emt 0:00:11]} Qc6 {[%emt 0:00:50]} (34... Qd3 $5 {[%cal Rd3g3]} 35. Bf2 Ne4 $14) 35. Rb1 {[%emt 0:01:23]} (35. Kh2 {is interesting.} Kf7 36. Rd1 Kg6 37. Rd4) 35... Ne4 {[%emt 0:00:34]} 36. Qxc6 {[%emt 0:00:54]} Rxc6 {[%emt 0:00:19][%mdl 4096] Endgame KRB-KRN} 37. Bb8 {[%emt 0:00:18]} Rxc4 {[%emt 0:00:48]} 38. Rxb7 {[%emt 0:00:11] Black must now prevent a6.} Ra4 {[%emt 0:00:04]} 39. Ra7 {[%emt 0:00:53]} Ra1+ {[%emt 0:00:29]} 40. Kh2 {[%emt 0:00:02]} h5 {[%emt 0:00:33]} 41. Ra8 {[%emt 0:30:23] aiming for Be5+.} Kh7 {[%emt 0:02:56]} 42. h4 {[%emt 0:00:00]} Nd2 {[%emt 0:08:34]} 43. Bc7 {[%emt 0:00:00]} g5 {[%emt 0:04:21]} (43... Kg6 $11) 44. hxg5 {[%emt 0:00:00]} fxg5 {[%emt 0:00:02]} 45. a6 {[%emt 0:00:00][%cal Ba5a6,Ba6a7][%mdl 32]} h4 $2 {[%emt 0:03:29][%mdl 8192]} (45... Nf1+ $16 {is tougher.} 46. Kg1 Ne3+ 47. Kf2 Nd5) 46. Be5 $2 {[%emt 0:00:00]} (46. a7 $18) 46... Ra2 $16 {[%emt 0:00:37] ...Nf3+ is the strong threat.} 47. Kh3 {[%emt 0:00:00] Hoping for a7. White is more active.} Ra5 $2 {[%emt 0:06:41][%mdl 8192] [#]} (47... Nc4 $16 {was worth a try.} 48. Bd4 Nd6) 48. Bb2 $2 {[%emt 0:00:15]} (48. a7 $1 $18 {and White stays clearly on top.} Rxe5 {[#]} 49. Rh8+ $3 {[%mdl 512]} Kxh8 50. a8=Q+ Kg7 51. Qb7+ (51. Qa1 Kf6 $11) 51... Kf6 52. Qb6+ Re6 53. Qf2+ Kg6 54. Qxd2) 48... Ne4 $2 {[%emt 0:04:25][%mdl 8192]} (48... Nc4 $16) 49. a7 $18 {[%emt 0:01:31]} Rd5 {[%emt 0:02:55]} 50. Kg4 {[%emt 0:01:28] Rh8+ would kill now.} Nf2+ {[%emt 0:00:57]} 51. Kh5 {[%emt 0:01:07] Weighted Error Value: White=0.28 (precise) /Black=0.50} (51. Kf3 $142 g4+ 52. Ke2 Ra5 53. Kxf2 Kh6 54. Rh8+ Kg6 55. a8=Q Rxa8 56. Rxa8) 1-0

[Event "55th Biel Festival MTO 2022"]
[Site "Biel"]
[Date "2022.07.22"]
[Round "9.17"]
[White "Shevchenko, Kirill"]
[Black "Karthik Rajaa"]
[Result "1-0"]
[ECO "B12"]
[WhiteElo "2654"]
[BlackElo "2331"]
[Annotator "TA"]
[PlyCount "91"]
[EventDate "2022.07.13"]
[EventType "swiss"]
[EventCountry "SUI"]
[SourceTitle "playchess.com"]
[Source "ChessBase"]
[SourceQuality "1"]
[TimeControl "40/5400+30:1800+30"]

{[%evp 9,91,0,7,25,22,-7,-2,-3,0,0,0,0,-8,-16,0,-26,20,22,13,6,17,0,0,0,0,-23,-18,-44,-22,-22,21,0,43,40,43,43,54,50,80,80,80,73,118,119,205,185,196,176,193,166,205,88,88,88,88,88,100,106,195,195,195,167,195,210,215,205,810,779,960,889,1087,876,868,852,1598,1594,1175,953,29961,29963,29966,29967,29985,29986]} 1. e4 {[%emt 0:00:03]} c6 {[%emt 0:00:39]} 2. d4 {[%emt 0:00:05]} d5 {[%emt 0:00:03]} 3. f3 {[%emt 0:00:04]} Qb6 {[%emt 0:00:05]} 4. Nc3 {[%emt 0:00:22]} e6 {[%emt 0:00:04]} 5. a3 {[%emt 0:00:18]} Nf6 {[%emt 0:00:04]} 6. e5 {[%emt 0:01:36] B12: Caro-Kann: Advance Variation.} Nfd7 {[%emt 0:00:03]} 7. b4 $5 {[%emt 0:06:01][%cal Bb2b4,Bb4b5][%mdl 4] Inhibits c5. An interesting side line.} a5 {[%emt 0:14:20]} 8. b5 {[%emt 0:00:19] [#] The position is equal.} a4 $146 {[%emt 0:00:04]} ({Predecessor:} 8... c5 9. Be3 cxd4 10. Bxd4 Qc7 11. f4 Bc5 12. Nf3 f6 13. exf6 Nxf6 14. Be5 Bd6 {1-0 (26) Moskvin,A (2170)-Sidorika,V (2278) Chess.com INT 2021}) 9. f4 {[%emt 0:05:00]} c5 {[%emt 0:11:48]} 10. Be3 {[%emt 0:06:52]} cxd4 {[%emt 0:01:01]} 11. Bxd4 {[%emt 0:00:05]} Bc5 {[%emt 0:00:05]} 12. Nf3 {[%emt 0:00:09]} Bxd4 {[%emt 0:01:00]} (12... g5 $142 13. Bxc5 (13. fxg5 Nxe5 14. Bxc5 Qxc5 $17) 13... Qxc5) 13. Qxd4 $11 {[%emt 0:25:27]} Qxd4 {[%emt 0:00:50]} 14. Nxd4 {[%emt 0:02:30]} Nb6 {[%emt 0:00:15]} 15. Kd2 {[%emt 0:06:04]} N8d7 {[%emt 0:03:50]} 16. Bd3 {[%emt 0:04:14]} Nc5 {[%emt 0:04:50]} 17. Nd1 {[%emt 0:18:32]} Bd7 {[%emt 0:05:54]} 18. Ne3 {[%emt 0:01:22]} O-O {[%emt 0:12:13]} 19. c4 {[%emt 0:03:05]} dxc4 {[%emt 0:12:06]} (19... f6 {looks sharper.} 20. Rhf1 fxe5 21. fxe5 Rfd8) 20. Nxc4 {[%emt 0:00:45]} Nxc4+ {[%emt 0:01:19]} (20... Nd5 $5 {[%cal Rd5f4]}) 21. Bxc4 {[%emt 0:00:01]} Rfd8 {[%emt 0:02:56][%cal Od7b5]} 22. Ke3 {[%emt 0:07:14]} Rdc8 {[%emt 0:01:55][%cal Oc5b3]} 23. Rhb1 {[%emt 0:02:52] Inhibits Nb3.} b6 {[%emt 0:07:16]} 24. Rb4 {[%emt 0:01:28]} Kf8 {[%emt 0:12:03]} 25. Be2 {[%emt 0:00:35] White is more active.} Nb3 {[%emt 0:02:25]} 26. Nxb3 {[%emt 0:00:37]} Rc3+ {[%emt 0:00:01]} (26... axb3 $16 27. Rxb3 Rc5) 27. Kd2 {[%emt 0:01:48][%cal Be3d2,Bd2c3,Bc3b3,Bb3b4][%mdl 32]} Rxb3 {[%emt 0:00:02]} 28. Rxb3 {[%emt 0:00:05]} axb3 $18 {[%emt 0:00:01][%mdl 4096] Endgame KRB-KRB} 29. Kc3 {[%emt 0:00:04]} Ra4 {[%emt 0:00:10]} 30. g3 {[%emt 0:02:00]} (30. Kxb3 $18 {has better winning chances.} Rxf4 31. Rd1) 30... g5 $16 {[%emt 0:04:59]} 31. Rd1 {[%emt 0:03:17]} Ke7 {[%emt 0:00:53]} 32. Kxb3 {[%emt 0:00:10]} Re4 {[%emt 0:01:01]} 33. Bd3 {[%emt 0:02:07]} Re3 {[%emt 0:00:02] [#]} (33... Rd4 $16 {was called for.}) 34. Kb4 $1 $18 {[%emt 0:00:08]} ({Not} 34. fxg5 Bxb5 35. Kc3 Rxe5 $11) 34... gxf4 {[%emt 0:00:10]} 35. gxf4 {[%emt 0:00:01] Black must now prevent Bc4.} Rf3 {[%emt 0:00:31] [#]} 36. Bc4 $1 {[%emt 0:00:21] aiming for Rd6.} Rxf4 {[%emt 0:00:11]} 37. Rd6 {[%emt 0:00:11]} Re4 $2 {[%emt 0:02:38]} (37... f6 38. Rxb6 fxe5) 38. Rxb6 {[%emt 0:00:07]} Rxe5 {[%emt 0:00:08]} 39. a4 {[%emt 0:01:41]} Kd8 {[%emt 0:00:55]} 40. Rb8+ {[%emt 0:02:04]} Kc7 {[%emt 0:00:49]} 41. Rf8 {[%emt 0:03:19]} Re1 {[%emt 0:04:05]} 42. Rxf7 {[%emt 0:01:07]} Kd6 {[%emt 0:00:04]} 43. Rf1 {[%emt 0:00:55]} Rxf1 {[%emt 0:01:46]} 44. Bxf1 {[%emt 0:00:02] White mates.} e5 {[%emt 0:00:19]} 45. Bd3 {[%emt 0:01:06]} h6 {[%emt 0:00:20]} 46. Be4 {[%emt 0:00:04] Weighted Error Value: White=0.10 (very precise) /Black=0.35} 1-0